fUSD/lending_fUSD_20240909
["ID","MTS","AMOUNT","RATE_DAILY","PERIOD"]
[337619937,1725894651792,-567.3855613,0.00014794,2]
[337619938,1725894651802,-107.40873443,0.00014794,2]
[337619939,1725894651815,-675.75650086,0.00014794,2]
[337619940,1725894651830,-618.3903605,0.00014794,2]
[337619941,1725894651841,-121.84440421,0.00014794,2]
[337619942,1725894651850,-500.0,0.00014794,2]
[337619943,1725894651860,-975.4,0.00014794,2]
[337619944,1725894651869,-500.0,0.00014794,2]
[337619945,1725894651879,-1523.4,0.00014794,2]
[337619946,1725894651888,-975.4,0.00014794,2]
[337619947,1725894651898,-1523.4,0.00014794,2]
[337619948,1725894651908,-500.0,0.00014794,2]
[337619949,1725894651917,-974.01092393,0.00014794,2]
[337619950,1725894652014,-1.38907607,0.00014794,2]
[337619951,1725894652024,-500.0,0.00014794,2]
[337619952,1725894652034,-1523.4,0.00014794,2]
[337619953,1725894652043,-500.0,0.00014794,2]
[337619954,1725894652053,-975.4,0.00014794,2]
[337619955,1725894652062,-500.0,0.00014794,2]
[337619956,1725894652072,-1022.53283839,0.00014794,2]
[337619957,1725894652089,-493.70431179,0.00014794,2]
[337619958,1725894652100,-7.16284982,0.00014794,2]
[337619959,1725894652110,-541.51803231,0.00014794,2]
[337619960,1725894652120,-975.4,0.00014794,2]
[337619961,1725894652129,-500.0,0.00014794,2]
[337619962,1725894652139,-1523.4,0.00014794,2]
[337619963,1725894652151,-142.9853694,0.00014794,2]
[337619964,1725894652500,-357.0146306,0.00014794,2]
[337619965,1725894652510,-42.9853694,0.00014794,2]
[337619966,1725894652522,-626.08111507,0.00014794,2]
[337619967,1725894652533,-854.33351553,0.00014794,2]
[337619968,1725894652543,-975.4,0.00014794,2]
[337619969,1725894652552,-470.86210626,0.00014794,2]
[337619970,1725894652561,-1523.4,0.00014794,2]
[337619971,1725894652570,-90.43924809,0.00014794,2]
[337619972,1725894670739,500.0,0.00010958,2]
[337619973,1725894693191,500.0,0.00010958,2]
[337619974,1725894921873,14372.0,0.000125,2]
[337619977,1725895014826,518.73,0.00011797,2]
[337619978,1725895048797,6061.51273769,0.000125,3]
[337619979,1725895049662,-251.59,0.000125,3]
[337619980,1725895051203,-247.77,0.000125,3]
[337619981,1725895052111,-192.3911076,0.000125,3]
[337619982,1725895052527,-150.0,0.000125,3]
[337619983,1725895053186,-150.0,0.000125,3]
[337619985,1725895053707,-150.0,0.000125,3]
[337619987,1725895054252,-150.0,0.000125,3]
[337619988,1725895054592,-150.0,0.000125,3]
[337619990,1725895055333,-150.0,0.000125,3]
[337619991,1725895055771,-150.0,0.000125,3]
[337619993,1725895058732,-150.0,0.000125,3]
[337619994,1725895059351,-150.0,0.000125,3]
[337619995,1725895060080,-150.0,0.000125,3]
[337619996,1725895060607,-150.0,0.000125,3]
[337619997,1725895061027,-150.0,0.000125,3]
[337619998,1725895126483,150.0,0.00010958,2]
[337619999,1725895126504,150.0,0.00010958,2]
[337620000,1725895126524,200.0,0.00010958,2]
[337620001,1725895128102,-282.26561529,0.000124,3]
[337620003,1725895204809,750.0,0.00011,2]
[337620004,1725895211886,535.0,0.000121,3]
[337620005,1725895274914,2138.0,0.00012,3]
[337620007,1725895345204,263.31726319,0.00028,120]
[337620008,1725895583017,566.38,0.00011365,2]
[337620009,1725895692756,160.76,0.00010959,2]
[337620012,1725895700975,-795.0,0.000124,2]
[337620013,1725895701005,-795.0,0.000124,2]
[337620014,1725895701036,-150.0,0.000125,2]
[337620015,1725895701066,-503.60151226,0.000126,2]
[337620094,1725895831737,-79.11848774,0.000126,2]
[337620095,1725895831748,-155.95248361,0.000129,2]
[337620096,1725895831758,-150.0,0.00012999,2]
[337620097,1725895831768,-281.15,0.00013,2]
[337620098,1725895831777,-619.4818592,0.00013,2]
[337620099,1725895831789,-180.5181408,0.00013,2]
[337620100,1725895831798,-176.94557333,0.00013,2]
[337620101,1725895831821,-2852.7448324,0.00013,2]
[337620102,1725895831832,-1676.12452515,0.00013,2]
[337620103,1725895831843,-1152.75568561,0.00013,2]
[337620104,1725895831856,-1680.57902925,0.00013,2]
[337620105,1725895831876,-424.51363552,0.00013,2]
[337620106,1725895831887,-2018.97890566,0.00013,2]
[337620107,1725895831898,-293.41476327,0.00013,2]
[337620108,1725895831910,-2248.6741294,0.00013,2]
[337620109,1725895831921,-2331.32555382,0.00013,2]
[337620110,1725895831936,-9071.77777833,0.00013,2]
[337620111,1725895832017,-628.42,0.00013,2]
[337620112,1725895832031,-1630.83773361,0.00013,2]
[337620127,1725895837779,-9178.32981854,0.00013,2]
[337620128,1725895837973,-764.14457792,0.00013,2]
[337620133,1725895840036,-1109.4817835,0.00013,2]
[337620134,1725895840050,-1031.30603232,0.00013,2]
[337620141,1725895842879,-55417.31951027,0.00013,2]
[337620142,1725895842936,-6985.00378806,0.00013,2]
[337620144,1725895843273,-5567.24797781,0.00013,2]
[337620145,1725895843284,-5604.8145048,0.00013,2]
[337620146,1725895843295,-5550.89523965,0.00013,2]
[337620147,1725895843307,-521.52906213,0.00013,2]
[337620152,1725895847278,-1906.18600947,0.00013,2]
[337620153,1725895847314,-511.2044854,0.00013,2]
[337620154,1725895847326,-97666.8732724,0.00013,2]
[337620155,1725895847338,-635.84286283,0.00013,2]
[337620156,1725895847358,-431.2367175,0.00013,2]
[337620157,1725896248102,578.13,0.00011417,2]
[337620158,1725896303651,150.0,0.00010959,2]
[337620159,1725896303673,150.0,0.00010959,2]
[337620160,1725896303694,150.0,0.00010959,2]
[337620161,1725896303715,14.24,0.00010959,2]
[337620164,1725896753014,150.0,0.00011224,2]
[337620165,1725896753035,150.0,0.00011224,2]
[337620166,1725896753056,246.52549231,0.00011224,2]
[337620167,1725896753081,32.69450769,0.00011224,2]
[337620197,1725896908086,-2821.460724,0.00012472,2]
[337620198,1725896908116,-3880.71530868,0.00012535,2]
[337620199,1725896908147,-166.22496331,0.00012635,2]
[337620200,1725896952265,5000.0,0.00012,2]
[337620217,1725896989221,5000.0,0.00012,2]
[337620218,1725896993668,150.0,0.00012,2]
[337620219,1725896993689,150.0,0.00012,2]
[337620220,1725896993710,150.0,0.00012,2]
[337620221,1725896993731,150.0,0.00012,2]
[337620222,1725896993752,150.0,0.00012,2]
[337620223,1725896993773,150.0,0.00012,2]
[337620224,1725896993794,150.0,0.00012,2]
[337620225,1725896993814,150.0,0.00012,2]
[337620226,1725896993835,150.0,0.00012,2]
[337620227,1725896993854,150.0,0.00012,2]
[337620228,1725896993874,150.0,0.00012,2]
[337620229,1725896993894,150.0,0.00012,2]
[337620230,1725896993915,3200.0,0.00012,2]
[337620231,1725897028014,150.0,0.00011,2]
[337620232,1725897028036,150.0,0.00011,2]
[337620233,1725897028058,150.0,0.00011,2]
[337620234,1725897028081,150.0,0.00011,2]
[337620235,1725897028105,150.0,0.00011,2]
[337620239,1725897031875,-9.9313623,0.00012635,2]
[337620240,1725897031887,-521.77015754,0.00012735,2]
[337620241,1725897031897,-1332.36481,0.0001287,2]
[337620242,1725897031906,-620.8946,0.000129,2]
[337620243,1725897031916,-150.0,0.00012986,2]
[337620244,1725897031926,-150.0,0.00012999,2]
[337620245,1725897031936,-300.0,0.00012999,2]
[337620246,1725897031946,-8209.19309178,0.00013,2]
[337620247,1725897031958,-4965.6778511,0.00013,2]
[337620248,1725897031991,-1144.03705431,0.00013,2]
[337620249,1725897032003,-700.0,0.00013,2]
[337620250,1725897032030,-498.56133196,0.00013,2]
[337620251,1725897032043,-8277.03365152,0.00013,2]
[337620252,1725897032055,-1103.55713475,0.00013,2]
[337620253,1725897032095,-6033.19678725,0.00013,2]
[337620254,1725897032162,-1918.29418788,0.00013,2]
[337620255,1725897032173,-1238.62357742,0.00013,2]
[337620268,1725897037811,-299.58797889,0.00013,2]
[337620270,1725897037872,-1191.41310921,0.00013,2]
[337620271,1725897038109,-10796.96,0.00013,2]
[337620272,1725897038150,-1409.26963899,0.00013,2]
[337620273,1725897038161,-6563.61910916,0.00013,2]
[337620274,1725897038174,-7133.23929741,0.00013,2]
[337620275,1725897038200,-742.11629914,0.00013,2]
[337620276,1725897038211,-277.0527081,0.00013,2]
[337620277,1725897038222,-887.83016339,0.00013,2]
[337620278,1725897038233,-10057.64443999,0.00013,2]
[337620279,1725897038244,-2665.46919121,0.00013,2]
[337620281,1725897038255,-868.5,0.00013,2]
[337620343,1725897039915,-7472.70909865,0.00013,2]
[337620344,1725897039928,-337.374,0.00013,2]
[337620345,1725897039939,-18297.50296652,0.00013,2]
[337620346,1725897039949,-771.66975813,0.00013,3]
[337620347,1725897039959,-253.04,0.00013,2]
[337620348,1725897039968,-5000.0,0.00013,2]
[337620349,1725897039979,-5000.0,0.00013,2]
[337620350,1725897039988,-800.0,0.00013,2]
[337620351,1725897039998,-795.0,0.00013015,2]
[337620352,1725897040007,-1435.06,0.0001306,2]
[337620353,1725897040016,-167.36,0.00013079,2]
[337620354,1725897040026,-200.0,0.00013107,2]
[337620355,1725897040035,-2000.0,0.00013162,2]
[337620356,1725897040045,-250.0,0.00013172,2]
[337620357,1725897040054,-250.0,0.00013186,2]
[337620358,1725897040063,-500.0,0.00013193,2]
[337620359,1725897040072,-2672.55134225,0.00013214,2]
[337620360,1725897040127,-420.525589,0.00013214,2]
[337620361,1725897040154,-274.59,0.00013214,2]
[337620362,1725897040188,-1418.69306875,0.00013214,2]
[337620363,1725897040197,-478.18,0.00013229,2]
[337620364,1725897040207,-268.98,0.00013229,2]
[337620365,1725897040218,-499.99,0.00013229,2]
[337620366,1725897040227,-250.0,0.00013251,2]
[337620367,1725897040236,-163.77,0.00013316,2]
[337620368,1725897040245,-1000.0,0.00013377,2]
[337620369,1725897040254,-579.22,0.00013488,2]
[337620370,1725897040264,-500.0,0.00013698,2]
[337620372,1725897040273,-500.0,0.00013698,2]
[337620373,1725897040283,-179.26,0.00013699,2]
[337620374,1725897040292,-166.79,0.00013699,2]
[337620375,1725897040303,-795.0,0.000137,2]
[337620376,1725897040311,-557.0,0.00013897,2]
[337620377,1725897040322,-1921.0,0.00013897,2]
[337620378,1725897040331,-1144.0,0.00013897,2]
[337620379,1725897040340,-289.0,0.00013897,2]
[337620380,1725897040350,-6521.221,0.00013897,2]
[337620381,1725897040496,-5859.0,0.00013897,2]
[337620382,1725897040522,-150.0,0.00013978,2]
[337620383,1725897040532,-150.0,0.00013978,2]
[337620384,1725897040542,-150.0,0.00013978,2]
[337620385,1725897040551,-4000.0,0.00014,2]
[337620386,1725897040561,-5000.0,0.00014,3]
[337620387,1725897040571,-5000.0,0.00014,2]
[337620388,1725897040580,-5000.0,0.00014,2]
[337620389,1725897040590,-177.0,0.00014104,2]
[337620390,1725897040600,-420.0,0.00014256,2]
[337620391,1725897040610,-795.0,0.00014385,2]
[337620392,1725897040619,-213.0,0.000144,2]
[337620393,1725897040629,-811.74,0.0001449,3]
[337620394,1725897040638,-4621.73291495,0.000145,2]
[337620395,1725897040648,-230.335536,0.00014521,2]
[337620396,1725897040657,-190.0874803,0.00014578,2]
[337620400,1725897042952,-3918.7910805,0.00014578,2]
[337620401,1725897042963,-320.26401847,0.00014578,2]
[337620402,1725897043068,-1963.95623651,0.00014578,2]
[337620403,1725897043803,-425.50000003,0.00014578,2]
[337620404,1725897043815,-307.60437692,0.00014578,2]
[337620405,1725897043827,-802.06340159,0.00014578,2]
[337620406,1725897043838,-357.36375668,0.00014578,2]
[337620407,1725897043883,-1129.128,0.00014578,2]
[337620408,1725897043894,-612.5,0.00014578,2]
[337620409,1725897043910,-710.18674446,0.00014578,2]
[337620418,1725897045978,-1210.6967017,0.00014578,2]
[337620419,1725897045990,-754.6010483,0.00014578,2]
[337620420,1725897046036,-768.85,0.00014578,2]
[337620421,1725897046158,-5024.88033492,0.00014578,2]
[337620422,1725897046171,-8551.87543966,0.00014578,2]
[337620423,1725897046181,-322.676,0.00014583,2]
[337620424,1725897046193,-1087.37,0.00014583,2]
[337620425,1725897046207,-213.0,0.000146,2]
[337620426,1725897046217,-593.184,0.0001468,2]
[337620427,1725897046226,-152.59,0.00014691,2]
[337620428,1725897046236,-2000.54523883,0.00014694,2]
[337620429,1725897046245,-200.0,0.000147,2]
[337620430,1725897046254,-4793.6124268,0.000147,3]
[337620431,1725897046264,-150.0,0.000147,2]
[337620432,1725897046275,-500.0,0.00014773,2]
[337620433,1725897046285,-500.0,0.00014773,2]
[337620434,1725897046296,-12722.6132026,0.00014774,2]
[337620435,1725897046311,-11394.17687182,0.00014774,2]
[337620436,1725897046329,-346.76974357,0.00014774,2]
[337620437,1725897046340,-850.0,0.00014774,2]
[337620438,1725897046364,-5791.56,0.00014774,2]
[337620439,1725897046376,-612.5,0.00014774,2]
[337620440,1725897046390,-432.77116256,0.00014774,2]
[337620441,1725897046403,-4553.8190213,0.00014774,2]
[337620442,1725897046415,-1697.68767099,0.00014774,2]
[337620447,1725897047404,150.0,0.00012,2]
[337620448,1725897047424,150.0,0.00012,2]
[337620449,1725897047445,150.0,0.00012,2]
[337620450,1725897047465,231.62561529,0.00012,2]
[337620451,1725897047488,9373.08767527,0.00012,2]
[337620452,1725897047980,150.07,0.00010959,2]
[337620455,1725897100448,500.0,0.00010958,2]
[337620457,1725897119984,500.0,0.00010958,2]
[337620458,1725897223504,525.0,0.00028,120]
[337620459,1725897304248,592.2,0.00011572,2]
[337620461,1725897725339,155.09,0.00010959,2]
[337620462,1725897818647,150.0,0.00010775,2]
[337620463,1725897818671,150.0,0.00010775,2]
[337620464,1725897818694,150.0,0.00010775,2]
[337620465,1725897818718,142.59,0.00010775,2]
[337620466,1725897847409,150.0,0.00012,2]
[337620467,1725897847429,150.0,0.00012,2]
[337620468,1725897847450,29700.0,0.00012,2]
[337620480,1725898153145,-3211.0,0.00012377,2]
[337620481,1725898153174,-3884.84865247,0.00012378,2]
[337620482,1725898153207,-3099.96481699,0.00012378,2]
[337620511,1725898178184,-2457.78653054,0.00012378,2]
[337620512,1725898178213,-300.0,0.00012435,2]
[337620513,1725898178240,-158.38,0.00012495,2]
[337620514,1725898178269,-4383.59839131,0.00012524,2]
[337620515,1725898178315,-3188.32211292,0.00012524,2]
[337620516,1725898178430,-7299.76492185,0.00012524,2]
[337620521,1725898232013,-1000.0,0.00012498,2]
[337620522,1725898232023,-357.03628517,0.00012524,2]
[337620523,1725898232066,-531.50828875,0.00012524,2]
[337620524,1725898232076,-155.35,0.00012656,2]
[337620525,1725898232085,-300.0,0.00012659,2]
[337620526,1725898232094,-8525.12135208,0.0001266,2]
[337620527,1725898232122,-2850.97289394,0.0001266,2]
[337620528,1725898232175,-426.42285384,0.0001266,2]
[337620529,1725898232231,-486.61826601,0.0001266,2]
[337620530,1725898232287,-20764.97860622,0.0001266,2]
[337620531,1725898232297,-155.35,0.0001266,2]
[337620532,1725898232306,-250.0,0.00012661,2]
[337620533,1725898232316,-155.35,0.00012665,2]
[337620534,1725898232325,-155.35,0.00012669,2]
[337620535,1725898232335,-150.0,0.00012672,2]
[337620536,1725898232344,-155.35,0.00012673,2]
[337620537,1725898232353,-499.99,0.00012673,2]
[337620538,1725898232363,-2299.85,0.00012673,2]
[337620539,1725898232372,-3659.22,0.00012673,2]
[337620540,1725898232382,-1900.65,0.00012673,2]
[337620541,1725898232392,-155.35,0.00012677,2]
[337620542,1725898232402,-155.35,0.00012681,2]
[337620543,1725898232412,-155.35,0.00012686,2]
[337620544,1725898232421,-5174.82,0.00012686,2]
[337620545,1725898232431,-155.35,0.0001269,2]
[337620546,1725898232441,-150.0,0.00012693,2]
[337620547,1725898232451,-155.35,0.00012694,2]
[337620548,1725898232461,-155.35,0.00012698,2]
[337620549,1725898232471,-155.35,0.00012703,2]
[337620550,1725898232481,-155.35,0.00012707,2]
[337620551,1725898232490,-155.35,0.00012711,2]
[337620552,1725898232500,-155.35,0.00012715,2]
[337620553,1725898232509,-155.35,0.00012719,2]
[337620554,1725898232519,-942.67,0.00012728,2]
[337620555,1725898232528,-163.77,0.00012766,2]
[337620556,1725898232538,-250.0,0.00012768,2]
[337620557,1725898232548,-250.0,0.00012768,2]
[337620558,1725898232557,-175.99,0.00012777,2]
[337620559,1725898232567,-500.0,0.00012877,2]
[337620560,1725898232577,-227.73,0.00013,2]
[337620561,1725898232586,-592.59,0.00013039,2]
[337620562,1725898232595,-150.0,0.0001329,2]
[337620563,1725898232605,-835.57,0.00013332,2]
[337620564,1725898232617,-190.66667,0.00013375,2]
[337620565,1725898232626,-192.24,0.00013431,2]
[337620566,1725898232635,-400.0,0.00013698,2]
[337620567,1725898232646,-500.0,0.00013698,2]
[337620568,1725898232657,-179.92,0.00013699,2]
[337620569,1725898232666,-161.91,0.00013737,2]
[337620570,1725898232676,-216.38,0.00013794,2]
[337620571,1725898232687,-866.92,0.00013836,2]
[337620572,1725898232696,-422.04,0.00013841,2]
[337620573,1725898232707,-752.42,0.00013841,2]
[337620574,1725898232717,-752.42,0.00013841,2]
[337620575,1725898232726,-752.42,0.00013841,2]
[337620576,1725898232738,-752.42,0.00013841,2]
[337620577,1725898232748,-205.63,0.00013841,2]
[337620578,1725898232757,-162.01,0.00013862,2]
[337620579,1725898232767,-420.0,0.00013888,2]
[337620580,1725898232776,-533.47,0.00013973,2]
[337620581,1725898232785,-302.11,0.00013973,2]
[337620582,1725898232794,-224.59,0.00013978,2]
[337620583,1725898232804,-2322.961,0.00014027,2]
[337620584,1725898232812,-150.0,0.00014027,2]
[337620585,1725898232822,-1000.0,0.0001406,2]
[337620586,1725898232831,-557.0,0.00014074,2]
[337620587,1725898232840,-529.273,0.00014074,2]
[337620588,1725898232849,-255.0,0.0001433,2]
[337620589,1725898232859,-1610.51251704,0.0001439,2]
[337620590,1725898232868,-2500.0,0.0001439,2]
[337620591,1725898232877,-419.85822493,0.00014392,2]
[337620592,1725898232887,-155.85325521,0.00014421,2]
[337620593,1725898232896,-172.79740645,0.00014421,2]
[337620594,1725898232905,-329.58854169,0.00014421,2]
[337620595,1725898232915,-1610.51251701,0.00014424,2]
[337620596,1725898232924,-1610.51251701,0.00014458,2]
[337620597,1725898232934,-500.0,0.00014473,2]
[337620598,1725898232943,-160.13894702,0.00014473,2]
[337620599,1725898232952,-405.86,0.0001448,3]
[337620600,1725898232962,-500.0,0.00014489,2]
[337620601,1725898232971,-500.0,0.00014489,2]
[337620602,1725898232984,-500.0,0.00014489,2]
[337620603,1725898232996,-500.0,0.00014489,2]
[337620604,1725898233006,-500.0,0.00014489,2]
[337620605,1725898233016,-214.88225378,0.00014489,2]
[337620606,1725898233026,-500.0,0.00014489,2]
[337620607,1725898233036,-243605.055776,0.0001449,2]
[337620608,1725898233046,-2604.514095,0.0001449,2]
[337620609,1725898233056,-150.24,0.0001449,2]
[337620610,1725898233066,-1610.51251701,0.00014491,2]
[337620611,1725898233076,-157688.95274259,0.000145,2]
[337620615,1725898238004,-1121.48036,0.000145,2]
[337620616,1725898238163,-280.695,0.000145,2]
[337620728,1725898240003,-887.80368,0.000145,2]
[337620734,1725898240056,-2951.7197915,0.000145,2]
[337620741,1725898240111,-453.8784,0.000145,2]
[337620747,1725898240166,-475.394608,0.000145,2]
[337620765,1725898240329,-700.77715924,0.000145,2]
[337620767,1725898240340,-1111.345,0.000145,2]
[337620770,1725898240359,-5615.0,0.000145,2]
[337621005,1725898243010,-162.01,0.00013773,2]
[337621007,1725898243019,-243.456,0.000145,2]
[337621012,1725898243059,-7979.52814858,0.000145,2]
[337621014,1725898243070,-380.87213384,0.000145,2]
[337621017,1725898243081,-600.64996105,0.000145,2]
[337621027,1725898243176,-436.78634993,0.000145,2]
[337621029,1725898243188,-4330.30693466,0.000145,2]
[337621081,1725898243738,-289.66217395,0.000145,2]
[337621083,1725898243751,-52966.17945955,0.000145,2]
[337621089,1725898243799,-1130.56,0.000145,2]
[337621091,1725898243811,-3695.10176852,0.000145,2]
[337621093,1725898243824,-96363.02206876,0.000145,2]
[337621095,1725898243840,-278166.79436085,0.000145,2]
[337621147,1725898244408,-1017.6830018,0.000145,2]
[337621148,1725898244422,-694.74624943,0.000145,2]
[337621149,1725898244437,-446.51173508,0.000145,2]
[337621150,1725898244454,-575.47544634,0.000145,2]
[337621151,1725898244467,-460.32635449,0.000145,2]
[337621152,1725898244515,-281.326473,0.000145,2]
[337621153,1725898244529,-313.60578957,0.000145,2]
[337621154,1725898244541,-5380.291501,0.000145,2]
[337621155,1725898244569,-63006.09891313,0.000145,2]
[337621156,1725898244580,-207.301983,0.00014521,2]
[337621157,1725898244590,-1610.51251701,0.00014525,2]
[337621158,1725898244600,-172.79740645,0.00014556,2]
[337621159,1725898244611,-1610.51251701,0.00014559,2]
[337621160,1725898244623,-1610.51251701,0.00014593,2]
[337621161,1725898244633,-358.832,0.00014594,2]
[337621162,1725898244643,-1222.59,0.00014594,2]
[337621163,1725898244652,-1610.51251701,0.00014626,2]
[337621164,1725898244663,-1610.51251701,0.0001466,2]
[337621165,1725898244672,-434.0856825,0.0001467,2]
[337621166,1725898244682,-27744.5,0.0001468,2]
[337621167,1725898244693,-3665.9095,0.0001468,2]
[337621168,1725898244703,-172.79740645,0.0001469,2]
[337621169,1725898244714,-172.529219,0.00014694,2]
[337621170,1725898244724,-1610.51251701,0.00014694,2]
[337621171,1725898244734,-359.87378719,0.00014694,2]
[337621172,1725898244754,-380.31317064,0.00014694,2]
[337621173,1725898244766,-150.0,0.000147,2]
[337621174,1725898244776,-868.171365,0.0001477,2]
[337621175,1725898244786,-500.0,0.00014773,2]
[337621176,1725898244796,-500.0,0.00014773,2]
[337621177,1725898244805,-2807.91875,0.00014774,2]
[337621178,1725898244815,-434.0856825,0.00014774,2]
[337621179,1725898244824,-926.0,0.0001478,2]
[337621180,1725898244834,-868.171365,0.0001478,2]
[337621181,1725898244843,-150.24,0.0001478,2]
[337621182,1725898244853,-1112.78651999,0.00014783,5]
[337621183,1725898244862,-791.856438,0.00014784,2]
[337621184,1725898244872,-646.4804002,0.00014784,2]
[337621185,1725898244882,-501.1043625,0.00014784,2]
[337621186,1725898244892,-355.7283247,0.00014784,2]
[337621187,1725898244901,-210.352287,0.00014784,2]
[337621188,1725898244910,-11222.828196,0.00014784,2]
[337621189,1725898244920,-8561.7452217,0.00014784,2]
[337621190,1725898244930,-5900.6622474,0.00014784,2]
[337621191,1725898244940,-3239.579273,0.00014784,2]
[337621192,1725898244949,-578.4962987,0.00014784,2]
[337621193,1725898244959,-1703.6412466,0.00014784,2]
[337621194,1725898244969,-1703.6412466,0.00014784,2]
[337621195,1725898244978,-1703.6412466,0.00014784,2]
[337621196,1725898244988,-1703.6412466,0.00014784,2]
[337621197,1725898245004,-1703.6412466,0.00014784,2]
[337621198,1725898245014,-182906.466809,0.0001479,5]
[337621199,1725898245023,-937.2324758,0.0001479,2]
[337621200,1725898245033,-151.0,0.0001479,2]
[337621201,1725898245043,-151.0,0.0001479,2]
[337621202,1725898245053,-13883.9111704,0.0001479,2]
[337621203,1725898245063,-151.0,0.0001479,2]
[337621204,1725898245072,-1703.6412466,0.0001479,2]
[337621205,1725898245082,-151.0,0.0001479,2]
[337621206,1725898245092,-151.0,0.0001479,2]
[337621207,1725898245102,-216.132219,0.0001479,2]
[337621208,1725898245112,-216.132219,0.0001479,2]
[337621209,1725898245121,-193.723223,0.0001479,2]
[337621210,1725898245131,-151.0,0.0001479,2]
[337621211,1725898245141,-193.723223,0.0001479,2]
[337621212,1725898245150,-151.0,0.0001479,2]
[337621213,1725898245160,-151.0,0.0001479,2]
[337621214,1725898245170,-750.214234,0.0001479,2]
[337621215,1725898245180,-340.348341,0.0001479,2]
[337621216,1725898245190,-340.348341,0.0001479,2]
[337621217,1725898245199,-151.0,0.0001479,2]
[337621218,1725898245209,-1915.049108,0.0001479,2]
[337621220,1725898245219,-1915.049108,0.0001479,2]
[337621222,1725898245229,-185.651729,0.0001479,2]
[337621224,1725898245239,-185.651729,0.0001479,2]
[337621226,1725898245257,-151.0,0.0001479,2]
[337621228,1725898245267,-1794.631774,0.0001479,2]
[337621230,1725898245277,-1794.631774,0.0001479,2]
[337621232,1725898245288,-290.306076,0.0001479,2]
[337621234,1725898245298,-465.692576,0.0001479,2]
[337621236,1725898245308,-465.692576,0.0001479,2]
[337621238,1725898245318,-290.306076,0.0001479,2]
[337621240,1725898245328,-151.0,0.0001479,2]
[337621242,1725898245338,-151.0,0.0001479,2]
[337621244,1725898245348,-2699.487398,0.0001479,2]
[337621245,1725898245358,-2699.487398,0.0001479,2]
[337621248,1725898245368,-2975.584137,0.0001479,2]
[337621250,1725898245378,-2975.584137,0.0001479,2]
[337621252,1725898245387,-151.0,0.0001479,2]
[337621254,1725898245397,-151.0,0.0001479,2]
[337621255,1725898245406,-151.0,0.0001479,2]
[337621257,1725898245415,-151.0,0.0001479,2]
[337621259,1725898245424,-151.0,0.0001479,2]
[337621261,1725898245434,-220.013138,0.0001479,2]
[337621263,1725898245443,-151.0,0.0001479,2]
[337621265,1725898245453,-151.0,0.0001479,2]
[337621267,1725898245463,-1516.601896,0.0001479,2]
[337621269,1725898245472,-1516.601896,0.0001479,2]
[337621271,1725898245482,-518.218653,0.0001479,2]
[337621273,1725898245499,-518.218653,0.0001479,2]
[337621275,1725898245508,-1170.241732,0.0001479,2]
[337621277,1725898245518,-245.997,0.0001479,2]
[337621279,1725898245528,-1170.241732,0.0001479,2]
[337621281,1725898245537,-245.997,0.0001479,2]
[337621283,1725898245546,-260529.23558731,0.00014794,2]
[337621285,1725898245556,-500.0,0.00014794,2]
[337621287,1725898245565,-500.0,0.00014794,2]
[337621289,1725898245575,-500.0,0.00014794,2]